fUST/lending_fUST_20241120
["ID","MTS","AMOUNT","RATE_DAILY","PERIOD"]
[342711728,1732058706091,-500.0,0.00021917,7]
[342711729,1732058706118,-500.0,0.00021917,7]
[342711730,1732058706143,-500.0,0.00021917,7]
[342711731,1732058706168,-500.0,0.00021917,7]
[342711732,1732058706196,-468.73645516,0.00021917,7]
[342711778,1732059032553,-400.0,0.00013973,2]
[342711779,1732059032562,-520.88763489,0.00018,2]
[342711780,1732059032779,-244.13939623,0.00018,2]
[342711781,1732059032791,-6250.59796888,0.00018,2]
[342711782,1732059032801,-278.2162715,0.00019931,2]
[342711783,1732059032810,-204.956148,0.00019938,2]
[342711784,1732059032819,-2039.1238674,0.00020064,2]
[342711785,1732059032828,-300.0,0.00020169,2]
[342711786,1732059032837,-300.0,0.0002017,2]
[342711787,1732059032847,-161.513634,0.00020178,2]
[342711788,1732059032856,-622.739939,0.00020445,2]
[342711789,1732059032866,-400.0,0.00020447,2]
[342711790,1732059032875,-514.79596827,0.00020998,3]
[342711791,1732059032884,-3000.0,0.00021,2]
[342711792,1732059032893,-3000.0,0.0002101,2]
[342711793,1732059032903,-3000.0,0.0002102,2]
[342711794,1732059032912,-3000.0,0.0002103,2]
[342711795,1732059032921,-272.55312186,0.0002103,2]
[342711796,1732059032930,-3000.0,0.0002104,2]
[342711797,1732059032939,-3000.0,0.0002105,2]
[342711798,1732059032949,-622.739939,0.0002113,2]
[342711799,1732059032958,-622.739939,0.00021815,2]
[342711800,1732059032968,-1836.26,0.00021907,3]
[342711801,1732059032977,-918.13,0.00021907,3]
[342711802,1732059032987,-500.0,0.00021916,2]
[342711803,1732059032997,-166.50959834,0.00021916,2]
[342711804,1732059033006,-500.0,0.00021916,2]
[342711805,1732059033015,-500.0,0.00021916,2]
[342711806,1732059033027,-500.0,0.00021916,2]
[342711807,1732059033041,-267.45321005,0.00021916,2]
[342711808,1732059033050,-500.0,0.00021916,2]
[342711809,1732059033060,-544.71602544,0.00021916,2]
[342711810,1732059033070,-500.0,0.00021916,2]
[342711811,1732059033083,-500.0,0.00021916,2]
[342711812,1732059033094,-158.5279275,0.00021916,2]
[342711813,1732059033104,-500.0,0.00021916,2]
[342711814,1732059033114,-500.0,0.00021916,2]
[342711815,1732059033125,-171.34908639,0.00021916,2]
[342711816,1732059033134,-209.01715592,0.00021917,2]
[342711817,1732059033144,-500.0,0.00021917,7]
[342711818,1732059033154,-500.0,0.00021917,7]
[342711819,1732059033168,-500.0,0.00021917,7]
[342711820,1732059033179,-500.0,0.00021917,7]
[342711821,1732059033188,-500.0,0.00021917,7]
[342711822,1732059033199,-500.0,0.00021917,7]
[342711823,1732059033208,-500.0,0.00021917,7]
[342711824,1732059033218,-500.0,0.00021917,7]
[342711825,1732059033228,-500.0,0.00021917,7]
[342711826,1732059033239,-484.96917991,0.00021917,7]
[342711827,1732059033249,-500.0,0.00021917,7]
[342711828,1732059033259,-500.0,0.00021917,7]
[342711829,1732059033268,-500.0,0.00021917,7]
[342711830,1732059033280,-500.0,0.00021917,7]
[342711831,1732059033290,-500.0,0.00021917,7]
[342711832,1732059033300,-500.0,0.00021917,7]
[342711833,1732059033310,-500.0,0.00021917,7]
[342711834,1732059033320,-500.0,0.00021917,7]
[342711835,1732059033330,-361.24040974,0.00021917,7]
[342711836,1732059033340,-500.0,0.00021917,7]
[342711837,1732059033350,-500.0,0.00021917,7]
[342711838,1732059033360,-500.0,0.00021917,7]
[342711839,1732059033370,-500.0,0.00021917,7]
[342711840,1732059033380,-524.61493111,0.00021917,7]
[342711841,1732059033391,-500.0,0.00021917,7]
[342711842,1732059033400,-500.0,0.00021917,7]
[342711843,1732059033410,-500.0,0.00021917,7]
[342711844,1732059033420,-500.0,0.00021917,7]
[342711845,1732059033430,-500.0,0.00021917,7]
[342711846,1732059033439,-636.13095636,0.00021917,7]
[342711847,1732059033450,-500.0,0.00021917,7]
[342711848,1732059033459,-544.10217938,0.00021917,7]
[342711849,1732059033468,-534.09458628,0.00021917,7]
[342711850,1732059033478,-500.0,0.00021917,7]
[342711851,1732059033488,-500.0,0.00021917,7]
[342711852,1732059033498,-500.0,0.00021917,7]
[342711853,1732059033508,-500.0,0.00021917,7]
[342711854,1732059033518,-643.058322,0.00021917,7]
[342711855,1732059033529,-500.0,0.00021917,7]
[342711856,1732059033539,-500.0,0.00021917,7]
[342711857,1732059033549,-500.0,0.00021917,7]
[342711858,1732059033558,-500.0,0.00021917,7]
[342711859,1732059033567,-500.0,0.00021917,7]
[342711860,1732059033577,-500.0,0.00021917,7]
[342711861,1732059033587,-500.0,0.00021917,7]
[342711862,1732059033596,-500.0,0.00021917,7]
[342711863,1732059033606,-500.0,0.00021917,7]
[342711864,1732059033616,-500.0,0.00021917,7]
[342711865,1732059033625,-2000.0,0.00021917,2]
[342711866,1732059033635,-500.0,0.00021917,7]
[342711867,1732059033645,-214.7394077,0.00021917,7]
[342711868,1732059033655,-500.0,0.00021917,7]
[342711869,1732059033664,-500.0,0.00021917,7]
[342711870,1732059033674,-500.0,0.00021917,7]
[342711871,1732059033684,-500.0,0.00021917,7]
[342711872,1732059033694,-500.0,0.00021917,7]
[342711873,1732059033703,-500.0,0.00021917,7]
[342711874,1732059033712,-500.0,0.00021917,7]
[342711875,1732059033722,-500.0,0.00021917,7]
[342711876,1732059033733,-644.26,0.00021917,7]
[342711877,1732059033743,-500.0,0.00021917,7]
[342711878,1732059033753,-375.33326475,0.00021917,7]
[342711879,1732059033762,-500.0,0.00021917,7]
[342711880,1732059033772,-500.0,0.00021917,7]
[342711881,1732059033784,-323.97478056,0.00021917,7]
[342711882,1732059033794,-500.0,0.00021917,7]
[342711883,1732059033804,-500.0,0.00021917,7]
[342711884,1732059033814,-500.0,0.00021917,7]
[342711885,1732059033824,-500.0,0.00021917,7]
[342711886,1732059033835,-500.0,0.00021917,7]
[342711887,1732059033844,-500.0,0.00021917,7]
[342711888,1732059033854,-500.0,0.00021917,7]
[342711889,1732059033864,-500.0,0.00021917,7]
[342711890,1732059033874,-500.0,0.00021917,7]
[342711891,1732059033883,-500.0,0.00021917,7]
[342711892,1732059033893,-500.0,0.00021917,7]
[342711893,1732059033903,-500.0,0.00021917,7]
[342711894,1732059033912,-500.0,0.00021917,7]
[342711895,1732059033922,-500.0,0.00021917,7]
[342711896,1732059033932,-500.0,0.00021917,7]
[342711897,1732059033942,-500.0,0.00021917,7]
[342711898,1732059033951,-500.33113951,0.00021917,7]
[342711899,1732059033961,-500.0,0.00021917,7]
[342711900,1732059033970,-500.0,0.00021917,7]
[342711901,1732059033980,-500.0,0.00021917,7]
[342711902,1732059033991,-500.0,0.00021917,7]
[342711903,1732059034000,-500.0,0.00021917,7]
[342711904,1732059034010,-500.0,0.00021917,7]
[342711905,1732059034019,-500.0,0.00021917,7]
[342711906,1732059034030,-502.6094748,0.00021917,7]
[342711907,1732059034039,-500.0,0.00021917,7]
[342711908,1732059034049,-589.41,0.00021917,7]
[342711909,1732059034059,-500.0,0.00021917,7]
[342711910,1732059034068,-500.0,0.00021917,7]
[342711911,1732059034079,-500.0,0.00021917,7]
[342711912,1732059034092,-500.0,0.00021917,7]
[342711913,1732059034101,-500.0,0.00021917,7]
[342711914,1732059034111,-500.0,0.00021917,7]
[342711915,1732059034122,-500.0,0.00021917,7]
[342711916,1732059034132,-500.0,0.00021917,7]
[342711917,1732059034142,-500.0,0.00021917,7]
[342711918,1732059034152,-500.0,0.00021917,7]
[342711919,1732059034163,-364.19156735,0.00021917,7]
[342711926,1732059038418,-135.80843265,0.00021917,7]
[342711927,1732059038428,-500.0,0.00021917,7]
[342711928,1732059038438,-500.0,0.00021917,7]
[342711929,1732059038448,-500.0,0.00021917,7]
[342711930,1732059038458,-500.0,0.00021917,7]
[342711931,1732059038468,-154.51893216,0.00021917,7]
[342711932,1732059038477,-500.0,0.00021917,7]
[342711933,1732059038488,-500.0,0.00021917,7]
[342711934,1732059038498,-500.0,0.00021917,7]
[342711935,1732059038507,-500.0,0.00021917,7]
[342711936,1732059038517,-293.52263519,0.00021917,7]
[342711937,1732059038563,-10.81792813,0.00021917,7]
[342711938,1732059038572,-500.0,0.00021917,7]
[342711939,1732059038582,-349.08321158,0.00021917,7]
[342711940,1732059038592,-500.0,0.00021917,7]
[342711941,1732059038601,-222.41547268,0.00021917,7]
[342711951,1732059040189,-277.58452732,0.00021917,7]
[342711952,1732059040199,-638.25,0.00021917,7]
[342711953,1732059040209,-500.0,0.00021917,7]
[342711954,1732059040220,-500.0,0.00021917,7]
[342711955,1732059040230,-500.0,0.00021917,7]
[342711956,1732059040240,-500.0,0.00021917,7]
[342711957,1732059040249,-500.0,0.00021917,7]
[342711958,1732059040259,-500.0,0.00021917,7]
[342711959,1732059040269,-458.20969129,0.00021917,7]
[342711960,1732059040280,-41.79030871,0.00021917,7]
[342711961,1732059040291,-500.0,0.00021917,7]
[342711962,1732059040300,-500.0,0.00021917,7]
[342711963,1732059040309,-500.0,0.00021917,7]
[342711964,1732059040318,-500.0,0.00021917,7]
[342711965,1732059040328,-758.20968629,0.00021917,7]
[342711966,1732059040340,-317.64145046,0.00021917,7]
[342711974,1732059043417,-70.22886325,0.00021917,7]
[342711975,1732059043428,-396.83567111,0.00021917,7]
[342711984,1732059046306,-103.16432889,0.00021917,7]
[342711985,1732059046316,-500.0,0.00021917,7]
[342711986,1732059046325,-500.0,0.00021917,7]
[342711987,1732059046335,-500.0,0.00021917,7]
[342711988,1732059046344,-500.0,0.00021917,7]
[342711989,1732059046354,-500.0,0.00021917,7]
[342711990,1732059046364,-500.0,0.00021917,7]
[342711991,1732059046373,-500.0,0.00021917,7]
[342711992,1732059046383,-500.0,0.00021917,7]
[342711993,1732059046392,-235.23227265,0.00021917,7]
[342711994,1732059046401,-398.48187561,0.00021917,7]
[342711995,1732059046410,-500.0,0.00021917,7]
[342711996,1732059046420,-500.0,0.00021917,7]
[342711997,1732059046429,-171.26925835,0.00021917,7]
[342711998,1732059046441,-328.73074165,0.00021917,7]
[342711999,1732059046450,-500.0,0.00021917,7]
[342712000,1732059046460,-500.0,0.00021917,7]
[342712001,1732059046469,-500.0,0.00021917,7]
[342712002,1732059046478,-500.0,0.00021917,7]
[342712003,1732059046487,-500.0,0.00021917,7]
[342712004,1732059046496,-500.0,0.00021917,7]
[342712005,1732059046506,-500.0,0.00021917,7]
[342712006,1732059046516,-500.0,0.00021917,7]
[342712007,1732059046525,-500.0,0.00021917,7]
[342712008,1732059046535,-500.0,0.00021917,7]
[342712009,1732059046549,-500.0,0.00021917,7]
[342712010,1732059046560,-500.0,0.00021917,7]
[342712011,1732059046569,-2610.96,0.00021917,7]
[342712012,1732059046579,-265.73325065,0.00021917,7]
[342712013,1732059046591,-235.09283345,0.00021917,7]
[342712014,1732059046600,-500.0,0.00021917,7]
[342712015,1732059046610,-500.0,0.00021917,7]
[342712016,1732059046619,-500.0,0.00021917,7]
[342712017,1732059046629,-500.0,0.00021917,7]
[342712018,1732059046638,-194.6972548,0.00021917,7]
[342712019,1732059046653,-305.3027452,0.00021917,7]
[342712020,1732059046667,-500.0,0.00021917,7]
[342712021,1732059046679,-108.2524502,0.00021917,7]
[342712155,1732060232543,-194.88973344,0.00013873,2]
[342712156,1732060232553,-226.60292302,0.00013973,2]
[342712157,1732060232567,-173.39707698,0.00013973,2]
[342712158,1732060232577,-7015.625,0.00018,2]
[342712159,1732060232586,-300.0,0.00020184,2]
[342712160,1732060232596,-300.0,0.00020184,2]
[342712161,1732060232605,-309.35655192,0.00020185,2]
[342712162,1732060232617,-805.65364165,0.00020185,2]
[342712163,1732060232630,-1334.231,0.00020185,2]
[342712164,1732060232643,-3900.28079403,0.00020185,2]
[342712165,1732060232655,-204.956148,0.00020223,2]
[342712166,1732060232665,-2789.3834157,0.00020262,2]
[342712167,1732060232676,-400.0,0.00020447,2]
[342712168,1732060232686,-206.37988061,0.00021817,2]
[342712169,1732060232697,-476.23818098,0.00021817,2]
[342712170,1732060232708,-1577.29,0.00021907,3]
[342712171,1732060232718,-1354.72,0.00021907,3]
[342712172,1732060232727,-413.757573,0.00021907,3]
[342712186,1732060238581,-263.602427,0.00021907,3]
[342712187,1732060238592,-338.68,0.00021907,3]
[342712188,1732060238602,-169.34,0.00021907,3]
[342712189,1732060238612,-508.07,0.00021907,3]
[342712190,1732060238621,-319.59363197,0.00021916,2]
[342712191,1732060238631,-296.81656515,0.00021916,2]
[342712192,1732060238640,-270.56098018,0.00021917,2]
[342712193,1732060238651,-500.0,0.00021917,7]
[342712194,1732060238660,-500.0,0.00021917,7]
[342712195,1732060238669,-500.0,0.00021917,7]
[342712196,1732060238678,-500.0,0.00021917,7]
[342712197,1732060238687,-500.0,0.00021917,7]
[342712198,1732060238696,-500.0,0.00021917,2]
[342712199,1732060238707,-500.0,0.00021917,7]
[342712200,1732060238718,-319.39202485,0.00021917,7]
[342712201,1732060238729,-500.0,0.00021917,7]
[342712202,1732060238739,-500.0,0.00021917,7]
[342712203,1732060238748,-524.45497256,0.00021917,7]
[342712204,1732060238757,-540.61805662,0.00021917,7]
[342712205,1732060238767,-500.0,0.00021917,7]
[342712206,1732060238776,-500.0,0.00021917,7]
[342712207,1732060238785,-500.0,0.00021917,7]
[342712208,1732060238795,-500.0,0.00021917,7]
[342712209,1732060238804,-500.0,0.00021917,7]
[342712210,1732060238813,-500.0,0.00021917,7]
[342712211,1732060238822,-500.0,0.00021917,7]
[342712212,1732060238832,-472.04134171,0.00021917,7]
[342712221,1732060240352,-28.64366283,0.00021917,7]
[342712222,1732060240362,-500.0,0.00021917,7]
[342712223,1732060240372,-500.0,0.00021917,7]
[342712224,1732060240381,-500.0,0.00021917,7]
[342712225,1732060240391,-500.0,0.00021917,7]
[342712226,1732060240400,-500.0,0.00021917,7]
[342712227,1732060240410,-500.0,0.00021917,7]
[342712228,1732060240419,-520.30716386,0.00021917,7]
[342712229,1732060240428,-500.0,0.00021917,7]
[342712230,1732060240438,-172.4409164,0.00021917,7]
[342712231,1732060240447,-324.8483789,0.00021917,7]
[342712232,1732060240458,-500.0,0.00021917,7]
[342712233,1732060240468,-500.0,0.00021917,7]
[342712234,1732060240478,-500.0,0.00021917,7]
[342712235,1732060240488,-500.0,0.00021917,7]
[342712236,1732060240499,-500.0,0.00021917,7]
[342712237,1732060240508,-500.0,0.00021917,7]
[342712238,1732060240517,-500.0,0.00021917,7]
[342712239,1732060240526,-500.0,0.00021917,7]
[342712240,1732060240537,-500.0,0.00021917,7]
[342712241,1732060240546,-152.24719981,0.00021917,7]
[342712242,1732060240555,-500.0,0.00021917,7]
[342712243,1732060240564,-500.0,0.00021917,7]
[342712244,1732060240573,-500.0,0.00021917,7]
[342712245,1732060240583,-500.0,0.00021917,7]
[342712246,1732060240592,-500.0,0.00021917,7]
[342712247,1732060240739,-500.0,0.00021917,7]
[342712248,1732060240748,-500.0,0.00021917,7]
[342712249,1732060240757,-500.0,0.00021917,7]
[342712250,1732060240767,-500.0,0.00021917,7]
[342712251,1732060240776,-500.0,0.00021917,7]
[342712252,1732060240785,-500.0,0.00021917,7]
[342712253,1732060240794,-500.0,0.00021917,7]
[342712254,1732060240803,-500.0,0.00021917,7]
[342712255,1732060240813,-171.81031275,0.00021917,7]
[342712256,1732060240822,-500.0,0.00021917,7]
[342712257,1732060240832,-581.64047702,0.00021917,7]
[342712258,1732060240844,-500.0,0.00021917,7]
[342712259,1732060240854,-508.5509314,0.00021917,7]
[342712260,1732060240863,-464.71095703,0.00021917,7]
[342712261,1732060240876,-35.28904297,0.00021917,7]
[342712262,1732060240890,-500.0,0.00021917,7]
[342712263,1732060240900,-500.0,0.00021917,7]
[342712264,1732060240910,-314.22618003,0.00021917,7]
[342712265,1732060240922,-185.77381997,0.00021917,7]
[342712266,1732060240932,-500.0,0.00021917,7]
[342712267,1732060240942,-500.0,0.00021917,7]
[342712268,1732060240951,-500.0,0.00021917,7]
[342712269,1732060240960,-500.0,0.00021917,7]
[342712270,1732060240970,-500.0,0.00021917,7]
[342712271,1732060240979,-500.0,0.00021917,7]
[342712272,1732060240988,-500.0,0.00021917,7]
[342712273,1732060240998,-482.55303851,0.00021917,7]
[342712274,1732060241007,-500.0,0.00021917,7]
[342712275,1732060241016,-507.44057253,0.00021917,7]
[342712276,1732060241026,-500.0,0.00021917,7]
[342712277,1732060241035,-500.0,0.00021917,7]
[342712278,1732060241043,-500.0,0.00021917,7]
[342712279,1732060241053,-151.0,0.00021917,2]
[342712280,1732060241062,-151.0,0.00021917,2]
[342712281,1732060241071,-500.0,0.00021917,7]
[342712282,1732060241089,-500.0,0.00021917,7]
[342712283,1732060241098,-1000.0,0.00021917,2]
[342712284,1732060241107,-500.0,0.00021917,7]
[342712285,1732060241117,-500.0,0.00021917,7]
[342712286,1732060241125,-500.0,0.00021917,7]
[342712287,1732060241135,-330.05329095,0.00021917,7]
[342712288,1732060241143,-500.0,0.00021917,7]
[342712289,1732060241153,-500.0,0.00021917,7]
[342712290,1732060241162,-533.2225039,0.00021917,7]
[342712291,1732060241171,-621.67340304,0.00021917,7]
[342712292,1732060241180,-500.0,0.00021917,7]
[342712293,1732060241190,-500.0,0.00021917,7]
[342712294,1732060241199,-500.0,0.00021917,7]
[342712295,1732060241208,-500.0,0.00021917,7]
[342712296,1732060241217,-500.0,0.00021917,7]
[342712297,1732060241227,-500.0,0.00021917,7]
[342712298,1732060241236,-500.0,0.00021917,7]
[342712299,1732060241245,-500.0,0.00021917,7]
[342712300,1732060241255,-447.55732012,0.00021917,7]
[342712301,1732060241264,-500.0,0.00021917,7]
[342712302,1732060241273,-500.0,0.00021917,7]
[342712303,1732060241282,-500.0,0.00021917,7]
[342712304,1732060241292,-500.0,0.00021917,7]
[342712305,1732060241301,-500.0,0.00021917,7]
[342712306,1732060241311,-500.0,0.00021917,7]
[342712307,1732060241320,-1244.28121877,0.00021917,2]
[342712308,1732060241329,-500.0,0.00021917,7]
[342712309,1732060241338,-500.0,0.00021917,7]
[342712310,1732060241347,-525.41586111,0.00021917,7]
[342712311,1732060241356,-332.954465,0.00021917,7]
[342712312,1732060241366,-574.79198545,0.00021917,7]
[342712313,1732060241376,-592.65657697,0.00021917,7]
[342712314,1732060241385,-500.0,0.00021917,7]
[342712315,1732060241394,-500.0,0.00021917,7]
[342712316,1732060241403,-500.0,0.00021917,7]
[342712317,1732060241413,-500.0,0.00021917,7]
[342712318,1732060241424,-500.0,0.00021917,7]
[342712319,1732060241434,-151.0,0.00021917,2]
[342712320,1732060241443,-617.89,0.00021917,7]
[342712321,1732060241452,-151.0,0.00021917,2]
[342712322,1732060241465,-151.0,0.00021917,2]
[342712323,1732060241475,-500.0,0.00021917,7]
[342712324,1732060241486,-500.0,0.00021917,7]
[342712325,1732060241495,-500.0,0.00021917,7]
[342712326,1732060241505,-541.50417437,0.00021917,7]
[342712327,1732060241515,-500.0,0.00021917,7]
[342712328,1732060241524,-500.0,0.00021917,7]
[342712329,1732060241535,-500.0,0.00021917,7]
[342712330,1732060241545,-548.9454667,0.00021917,7]
[342712331,1732060241554,-500.0,0.00021917,7]
[342712332,1732060241563,-500.0,0.00021917,7]
[342712333,1732060241573,-500.0,0.00021917,7]
[342712334,1732060241584,-500.0,0.00021917,7]
[342712335,1732060241593,-500.0,0.00021917,7]
[342712336,1732060241603,-500.0,0.00021917,7]
[342712337,1732060241612,-500.0,0.00021917,7]
[342712338,1732060241623,-500.0,0.00021917,7]
[342712339,1732060241634,-500.0,0.00021917,7]
[342712340,1732060241643,-500.0,0.00021917,7]
[342712341,1732060241653,-500.0,0.00021917,7]
[342712342,1732060241662,-500.0,0.00021917,7]
[342712343,1732060241672,-500.0,0.00021917,7]
[342712344,1732060241683,-500.0,0.00021917,7]
[342712345,1732060241693,-151.0,0.00021917,2]
[342712346,1732060241703,-151.0,0.00021917,2]
[342712347,1732060241713,-151.0,0.00021917,2]
[342712348,1732060241724,-500.0,0.00021917,7]
[342712349,1732060241734,-500.0,0.00021917,7]
[342712350,1732060241744,-500.0,0.00021917,7]
[342712351,1732060241756,-500.0,0.00021917,7]
[342712352,1732060241766,-500.0,0.00021917,7]
[342712353,1732060241778,-500.0,0.00021917,7]
[342712354,1732060241788,-500.0,0.00021917,7]
[342712355,1732060241798,-500.0,0.00021917,7]
[342712356,1732060241807,-500.0,0.00021917,7]
[342712357,1732060241816,-500.0,0.00021917,7]
[342712358,1732060241828,-500.0,0.00021917,7]
[342712359,1732060241838,-500.0,0.00021917,7]
[342712360,1732060241847,-500.0,0.00021917,7]
[342712361,1732060241857,-500.0,0.00021917,7]
[342712362,1732060241866,-504.17899109,0.00021917,7]
[342712363,1732060241875,-500.0,0.00021917,7]
[342712364,1732060241884,-500.0,0.00021917,7]
[342712365,1732060241895,-376.54667837,0.00021917,7]
[342712366,1732060241904,-190.79012765,0.00021917,7]
[342712367,1732060241913,-500.0,0.00021917,7]
[342712368,1732060241922,-453.85806148,0.00021917,7]
[342712369,1732060241931,-500.0,0.00021917,7]
[342712370,1732060241940,-500.0,0.00021917,7]
[342712371,1732060241950,-500.0,0.00021917,7]
[342712372,1732060241960,-500.0,0.00021917,7]
[342712373,1732060241970,-619.55,0.00021917,7]
[342712374,1732060241980,-500.0,0.00021917,7]
[342712375,1732060241990,-500.0,0.00021917,7]
[342712376,1732060242000,-500.0,0.00021917,7]
[342712377,1732060242009,-500.0,0.00021917,7]
[342712378,1732060242029,-500.0,0.00021917,7]
[342712379,1732060242041,-151.0,0.00021917,2]
[342712380,1732060242053,-283.347011,0.00021917,2]
[342712381,1732060242063,-500.0,0.00021917,7]
[342712382,1732060242074,-500.0,0.00021917,7]
[342712383,1732060242085,-500.0,0.00021917,7]
[342712384,1732060242094,-500.0,0.00021917,7]
[342712385,1732060242104,-500.0,0.00021917,7]
[342712386,1732060242114,-500.0,0.00021917,7]
[342712387,1732060242125,-507.80192416,0.00021917,7]
[342712388,1732060242136,-172.1506074,0.00021917,7]
[342712389,1732060242147,-500.0,0.00021917,7]
[342712390,1732060242158,-500.0,0.00021917,7]
[342712391,1732060242168,-256.26616397,0.00021917,7]
[342712392,1732060242179,-500.0,0.00021917,7]
[342712393,1732060242190,-151.0,0.00021917,2]
[342712394,1732060242200,-256.130494,0.00021917,2]
[342712395,1732060242211,-151.0,0.00021917,2]
[342712396,1732060242223,-151.0,0.00021917,2]
[342712397,1732060242233,-151.0,0.00021917,2]
[342712398,1732060242243,-151.0,0.00021917,2]
[342712399,1732060242254,-500.0,0.00021917,7]
[342712400,1732060242265,-500.0,0.00021917,7]
[342712401,1732060242276,-500.0,0.00021917,7]
[342712402,1732060242286,-508.17456336,0.00021917,7]
[342712403,1732060242296,-151.0,0.00021917,2]
[342712404,1732060242306,-151.0,0.00021917,2]
[342712405,1732060242315,-151.0,0.00021917,2]
[342712406,1732060242325,-151.0,0.00021917,2]
[342712407,1732060242335,-500.0,0.00021917,7]
[342712408,1732060242346,-500.0,0.00021917,7]
[342712409,1732060242356,-500.0,0.00021917,7]
[342712410,1732060242365,-500.0,0.00021917,7]
[342712411,1732060242375,-514.51416902,0.00021917,7]
[342712412,1732060242385,-500.0,0.00021917,7]
[342712413,1732060242395,-500.0,0.00021917,7]
[342712414,1732060242405,-114.22948111,0.00021917,7]
[342712415,1732060242424,-208.25549059,0.00021917,7]
[342712416,1732060242434,-186.21966493,0.00021917,7]
[342712431,1732060243683,-341.22355179,0.00021917,7]
[342712433,1732060243692,-500.0,0.00021917,7]
[342712434,1732060243701,-264.75781611,0.00021917,7]
[342712435,1732060243711,-500.0,0.00021917,7]
[342712436,1732060243722,-434.35769185,0.00021917,7]
[342712438,1732060243733,-65.64230815,0.00021917,7]
[342712439,1732060243744,-514.53570107,0.00021917,7]
[342712440,1732060243755,-500.0,0.00021917,7]
[342712441,1732060243766,-500.0,0.00021917,7]
[342712442,1732060243776,-151.0,0.00021917,2]
[342712443,1732060243786,-151.0,0.00021917,2]
[342712444,1732060243796,-151.0,0.00021917,2]
[342712445,1732060243807,-151.0,0.00021917,2]
[342712446,1732060243816,-151.0,0.00021917,2]
[342712447,1732060243826,-151.0,0.00021917,2]
[342712448,1732060243836,-151.0,0.00021917,2]
[342712450,1732060243846,-151.0,0.00021917,2]
[342712452,1732060243856,-500.0,0.00021917,7]
[342712454,1732060243866,-519.78140819,0.00021917,7]
[342712456,1732060243876,-500.0,0.00021917,7]
[342712458,1732060243886,-500.0,0.00021917,7]
[342712459,1732060243895,-500.0,0.00021917,7]
[342712460,1732060243904,-500.0,0.00021917,7]
[342712461,1732060243914,-500.0,0.00021917,7]
[342712462,1732060243923,-501.91972121,0.00021917,7]
[342712463,1732060243933,-500.0,0.00021917,7]
[342712464,1732060243943,-500.0,0.00021917,7]
[342712465,1732060243952,-500.0,0.00021917,7]
[342712466,1732060243961,-1500.0,0.00021917,2]
[342712467,1732060243971,-508.14146953,0.00021917,7]
[342712468,1732060243980,-500.0,0.00021917,7]
[342712469,1732060243990,-45.74096345,0.00021917,7]
[342712488,1732060633231,158.08,0.00026,60]
[342712562,1732061435472,-400.0,0.00013973,2]
[342712563,1732061435482,-2522.28400768,0.00018,2]
[342712564,1732061435494,-520.79882765,0.00018,2]
[342712581,1732061438724,-3972.54216467,0.00018,2]
[342712582,1732061438734,-161.513634,0.0001971,2]
[342712583,1732061438744,-400.0,0.00020447,2]
[342712584,1732061438754,-300.0,0.00020564,2]